fUSD/lending_fUSD_20250612
["ID","MTS","AMOUNT","RATE_DAILY","PERIOD"]
[365524622,1749747041217,-501.97534187,0.00016973,2]
[365524623,1749747041226,-500.0,0.00016973,2]
[365524624,1749747041235,-519.95792131,0.00016973,2]
[365524625,1749747041246,-500.0,0.00016973,2]
[365524626,1749747041255,-500.0,0.00016973,2]
[365524627,1749747041265,-501.58829197,0.00016973,2]
[365524628,1749747041275,-2230.5214618,0.00016973,2]
[365524629,1749747041285,-8592.92287013,0.00016975,2]
[365524630,1749747041294,-1417.35730387,0.00016976,2]
[365524631,1749747041305,-210.28891085,0.00016976,2]
[365524632,1749747041314,-1463.91549119,0.0001698,2]
[365524633,1749747041324,-1478.58795493,0.0001698,2]
[365524634,1749747041336,-188.67579292,0.00016987,2]
[365524635,1749747041345,-612.65658128,0.00016987,2]
[365524636,1749747041355,-323.81464827,0.00016987,2]
[365524637,1749747041364,-228.73564288,0.00016987,2]
[365524638,1749747041375,-1500.92105034,0.00016988,2]
[365524639,1749747041384,-364.88783001,0.00016989,2]
[365524640,1749747041394,-1000.0,0.00016989,2]
[365524641,1749747041403,-1227.68927388,0.0001699,2]
[365524642,1749747041413,-2000.0,0.0001699,2]
[365524643,1749747041423,-2000.0,0.0001699,2]
[365524644,1749747041433,-2000.0,0.0001699,2]
[365524645,1749747041444,-2000.0,0.0001699,2]
[365524646,1749747041453,-2000.0,0.0001699,2]
[365524647,1749747041463,-262720.80210623,0.0001699,2]
[365524648,1749747041472,-175173.94969565,0.00016992,2]
[365524649,1749747041482,-77101.96197121,0.00016992,2]
[365524650,1749747041491,-150.0,0.00016994,2]
[365524651,1749747041500,-295.1907986,0.00016994,2]
[365524652,1749747041510,-158.63247591,0.00016994,2]
[365524653,1749747041519,-150.0,0.00016994,2]
[365524654,1749747041531,-500.0,0.00016994,2]
[365524655,1749747041541,-150.0,0.00016994,2]
[365524656,1749747041550,-150.0,0.00016994,2]
[365524657,1749747041560,-1561.0,0.00016994,2]
[365524658,1749747041570,-203.6039194,0.00016994,2]
[365524659,1749747041579,-500.0,0.00016994,2]
[365524660,1749747041589,-151.96943552,0.00016994,2]
[365524661,1749747041598,-150.0,0.00016994,2]
[365524662,1749747041610,-150.0,0.00016994,2]
[365524663,1749747041621,-500.0,0.00016994,2]
[365524664,1749747041630,-150.0,0.00016994,2]
[365524665,1749747041639,-500.0,0.00016994,2]
[365524666,1749747041649,-500.0,0.00016994,2]
[365524667,1749747041659,-500.0,0.00016994,2]
[365524668,1749747041668,-500.0,0.00016994,2]
[365524669,1749747041677,-200.63288875,0.00016994,2]
[365524670,1749747041686,-500.0,0.00016994,2]
[365524671,1749747041696,-4604.0019166,0.00016995,2]
[365524672,1749747041705,-538.7146519,0.00016995,2]
[365524673,1749747041715,-159832.549681,0.00016995,2]
[365524674,1749747041725,-216.31,0.00016999,2]
[365524675,1749747041734,-300.0,0.00016999,2]
[365524676,1749747041744,-300.0,0.00016999,2]
[365524677,1749747041753,-6752.63818017,0.00017,3]
[365524678,1749747041762,-584908.11595363,0.00017,3]
[365524679,1749747041771,-71499.04018283,0.00017,2]
[365524680,1749747041784,-46805.21448004,0.00017,2]
[365524966,1749747045924,-225.61185597,0.00016895,2]
[365524967,1749747045933,-55.12814489,0.00017,2]
[365524968,1749747045948,-12372.28750565,0.00017,2]
[365524970,1749747046832,-2638.80385999,0.00017,2]
[365524971,1749747046930,-261.19614001,0.00017,2]
[365524972,1749747270560,150.0,0.00022215,120]
[365524973,1749747395125,2751.0,0.00015967,2]
[365524974,1749747451350,150.0,0.00019387,120]
[365524975,1749747531758,200.0,0.00015936,7]
[365524976,1749747603969,941.05,0.00024658,120]
[365524977,1749747612092,202.0,0.00015386,2]
[365524978,1749747612416,202.0,0.0001595,2]
[365524979,1749747618575,1666.91,0.00015932,2]
[365524980,1749747625844,-166.52,0.00016112,2]
[365524981,1749747641566,2823.16,0.00024658,120]
[365524982,1749747652421,155.63,0.0001594,2]
[365524984,1749747672435,650.8,0.00013699,2]
[365524985,1749747673167,3000.0,0.00017,10]
[365524986,1749747708136,24353.56784717,0.00016,2]
[365524988,1749747774065,1852.42,0.00015951,2]
[365524989,1749747790470,23900.0,0.00015938,2]
[365524990,1749747870714,150.0,0.00021254,120]
[365524991,1749747884982,1725.0,0.00024658,120]
[365524992,1749747911265,666.0,0.00015921,2]
[365524993,1749747922005,250.0,0.00015921,2]
[365524994,1749747971685,202.0,0.00015515,2]
[365524995,1749747989161,997.28,0.00015925,2]
[365524996,1749748063434,200.0,0.00015914,2]
[365524997,1749748150260,1425.64,0.00013995,2]
[365525021,1749748232231,-202.0,0.00016093,2]
[365525022,1749748232240,-300.0,0.00016098,2]
[365525023,1749748232250,-250.0,0.00016103,2]
[365525024,1749748232259,-93.09770921,0.00016109,2]
[365525025,1749748232373,-206.90229079,0.00016109,2]
[365525026,1749748232382,-169.31432995,0.00016114,2]
[365525027,1749748232392,-600.0,0.0001612,4]
[365525028,1749748232401,-1000.0,0.00016147,2]
[365525029,1749748232410,-500.0,0.00016164,2]
[365525030,1749748232420,-500.0,0.00016164,2]
[365525031,1749748232430,-600.0,0.00016174,4]
[365525032,1749748232441,-1425.64,0.00016259,2]
[365525033,1749748232451,-500.0,0.00016411,2]
[365525034,1749748232461,-202.0,0.00016671,3]
[365525035,1749748232471,-1200.0,0.00016768,2]
[365525036,1749748232480,-867.9924602,0.00016769,2]
[365525037,1749748232490,-751.0,0.000168,2]
[365525038,1749748232499,-300.0,0.00016852,2]
[365525039,1749748232509,-300.0,0.00016853,2]
[365525040,1749748232519,-1957.856,0.00016854,2]
[365525041,1749748232528,-207.4,0.00016854,2]
[365525042,1749748232537,-500.0,0.00016864,2]
[365525043,1749748232547,-219.57539712,0.00016899,2]
[365525044,1749748232555,-366.0,0.00016899,2]
[365525045,1749748232565,-180.34460197,0.000169,2]
[365525046,1749748232575,-427.20834065,0.000169,2]
[365525047,1749748232586,-10255.43395224,0.000169,2]
[365525048,1749748232595,-1638.5745814,0.000169,2]
[365525049,1749748237409,-784.48033572,0.000169,2]
[365525050,1749748237419,-151.0,0.00016901,2]
[365525051,1749748237429,-1250.0,0.00016901,2]
[365525052,1749748237440,-2030.296672,0.00016909,2]
[365525053,1749748237449,-637.0,0.00016911,2]
[365525054,1749748237459,-817.0,0.00016911,2]
[365525056,1749748237470,-558.0,0.00016911,2]
[365525058,1749748237479,-1276.0,0.00016911,2]
[365525060,1749748237489,-590.0,0.00016911,2]
[365525062,1749748237499,-929.106,0.00016911,2]
[365525064,1749748237508,-2006.262,0.00016911,2]
[365525065,1749748237518,-1673.0,0.00016911,2]
[365525066,1749748237528,-1318.82807162,0.00016911,2]
[365525067,1749748237540,-2768.17192838,0.00016911,2]
[365525068,1749748237552,-853.0,0.00016911,2]
[365525069,1749748237562,-884.0,0.00016911,2]
[365525071,1749748237572,-155.0,0.00016911,2]
[365525073,1749748237582,-1067.632,0.00016956,2]
[365525075,1749748237593,-494.0,0.00016956,2]
[365525076,1749748237603,-197.576,0.00016956,2]
[365525077,1749748237614,-1496.92012512,0.00016964,2]
[365525235,1749748240002,-608.49752374,0.00016964,2]
[365525236,1749748240012,-500.0,0.00016973,2]
[365525237,1749748240021,-158.74703324,0.00016973,2]
[365525238,1749748240031,-501.84441112,0.00016973,2]
[365525239,1749748240040,-500.0,0.00016973,2]
[365525240,1749748240055,-346.64936122,0.00016973,2]
[365525241,1749748240065,-500.0,0.00016973,2]
[365525242,1749748240075,-500.0,0.00016973,2]
[365525243,1749748240084,-8794.77700723,0.00016985,2]
[365525244,1749748240095,-1756.53,0.00016986,2]
[365525245,1749748240104,-222.29,0.00016986,2]
[365525246,1749748240114,-162.95,0.00016986,2]
[365525247,1749748240125,-500.0,0.00016994,2]
[365525248,1749748240135,-500.0,0.00016994,2]
[365525249,1749748240145,-150.0,0.00016994,2]
[365525250,1749748240155,-150.0,0.00016994,2]
[365525251,1749748240166,-500.0,0.00016994,2]
[365525252,1749748240176,-500.0,0.00016994,2]
[365525253,1749748240186,-500.0,0.00016994,2]
[365525254,1749748240197,-500.0,0.00016994,2]
[365525255,1749748240207,-150.0,0.00016994,2]
[365525256,1749748240217,-500.0,0.00016994,2]
[365525257,1749748240226,-150.0,0.00016994,2]
[365525258,1749748240236,-200.63288875,0.00016994,2]
[365525259,1749748240246,-500.0,0.00016994,2]
[365525260,1749748240256,-500.0,0.00016994,2]
[365525261,1749748240266,-151.96943552,0.00016994,2]
[365525262,1749748240275,-150.0,0.00016994,2]
[365525263,1749748240285,-150.0,0.00016994,2]
[365525264,1749748240294,-42817.0274964,0.00016995,2]
[365525265,1749748240304,-319.4881421,0.00016995,2]
[365525266,1749748240314,-3641.1806988,0.00016998,2]
[365525267,1749748240323,-15374.3654112,0.00016998,2]
[365525268,1749748240333,-857.510057,0.00016998,2]
[365525269,1749748240343,-4813.1888767,0.00016998,2]
[365525270,1749748240353,-751.1477968,0.00016998,2]
[365525271,1749748240363,-56.20386018,0.00016998,2]
[365525275,1749748240955,-7066.0,0.00016911,2]
[365525276,1749748240964,-930.19164322,0.00016998,2]
[365525277,1749748240975,-226.67025379,0.00016998,2]
[365525278,1749748240984,-160.11495001,0.00016998,2]
[365525279,1749748240994,-428.85960689,0.00016998,2]
[365525280,1749748241003,-300.0,0.00016999,2]
[365525281,1749748241012,-216.31,0.00016999,2]
[365525282,1749748241022,-5560.00729469,0.00017,3]
[365525283,1749748241049,-274.64485883,0.00017,3]
[365525284,1749748241178,-917.98602665,0.00017,3]
[365525285,1749748241187,-10258.76333845,0.00017,3]
[365525286,1749748241199,-1586.5355466,0.00017,3]
[365525287,1749748241210,-573062.81706858,0.00017,3]
[365525288,1749748241220,-263509.58301573,0.00017,2]
[365525289,1749748241230,-3007.10158479,0.00017,2]
[365525290,1749748241256,-52879.53014546,0.00017,2]
[365525291,1749748241267,-1381.25,0.00017,2]
[365525302,1749748243195,-1407.24617463,0.00017,2]
[365525303,1749748243241,-10494.25000001,0.00017,2]
[365525304,1749748243362,-2654.27089714,0.00017,2]
[365525306,1749748245964,-23424.3968792,0.00017,2]
[365525307,1749748246117,-4280.482625,0.00017,2]
[365525308,1749748246229,-1928.34797702,0.00017,2]
[365525314,1749748309347,169.3,0.00015914,2]
[365525315,1749748310639,365.0,0.00015861,2]
[365525316,1749748386564,500.0,0.00024657,120]
[365525317,1749748390297,500.0,0.00024657,120]
[365525318,1749748460554,208.52,0.00015988,2]
[365525319,1749748574663,200.0,0.00015973,7]
[365525320,1749748608395,150.0,0.00015973,2]
[365525321,1749748691991,202.0,0.00015248,2]
[365525322,1749748692190,202.0,0.00015845,2]
[365525324,1749748732270,618.26,0.00013699,2]
[365525326,1749748807580,174.4,0.00015985,2]
[365525327,1749748829379,23900.0,0.00015981,2]
[365525328,1749748832414,500.0,0.0001598,2]
[365525329,1749748832466,377.22548767,0.0001598,2]
[365525330,1749748872500,500.0,0.0001598,2]
[365525331,1749748880360,500.0,0.0001598,2]
[365525332,1749748880414,638.76276956,0.0001598,2]
[365525333,1749748887421,500.0,0.0001598,2]
[365525334,1749748887452,592.17051989,0.0001598,2]
[365525335,1749748895885,500.0,0.0001598,2]
[365525336,1749748895935,150.36972246,0.0001598,2]
[365525337,1749748900532,666.0,0.00015994,2]
[365525339,1749749048337,2895.43,0.0001598,2]
[365525340,1749749051865,202.0,0.00015442,2]
[365525341,1749749074613,250.0,0.00015956,2]
[365525342,1749749143084,1313.26,0.00014041,2]
[365525343,1749749155746,15012.0,0.00015,10]
[365525344,1749749221513,626.14,0.00015936,2]
[365525345,1749749265338,30000.0,0.000155,2]
[365525346,1749749283738,500.0,0.00015935,2]
[365525347,1749749283833,3431.91,0.000155,2]
[365525348,1749749291610,1000.0,0.00015935,2]
[365525349,1749749302203,60449.64441189,0.00012,30]
[365525350,1749749321014,176360.77769132,0.000151,2]
[365525351,1749749324295,1553.50031669,0.00015,30]
[365525352,1749749324748,325.96,0.00015915,2]
[365525353,1749749325184,227.75532476,0.00013699,30]
[365525360,1749749411975,202.0,0.00015052,2]
[365525361,1749749412179,202.0,0.00015677,2]
[365525379,1749749432619,-300.0,0.00016054,2]
[365525383,1749749432634,-250.0,0.00016056,2]
[365525385,1749749432650,-300.0,0.00016056,2]
[365525386,1749749432665,-365.0,0.0001606,2]
[365525387,1749749432682,-300.0,0.00016065,2]
[365525388,1749749432699,-365.0,0.00016081,2]
[365525389,1749749432714,-1576.99745256,0.0001615,2]
[365525390,1749749432729,-500.0,0.00016164,2]
[365525391,1749749432745,-500.0,0.00016164,2]
[365525392,1749749432760,-202.0,0.00016301,3]
[365525393,1749749432775,-1313.26,0.00016305,2]
[365525394,1749749432792,-166.71,0.00016411,2]
[365525397,1749749432808,-365.0,0.00016595,2]
[365525400,1749749432824,-1200.0,0.00016737,2]
[365525402,1749749432840,-365.0,0.00016738,2]
[365525405,1749749432855,-867.9924602,0.00016806,2]
[365525407,1749749432871,-300.0,0.00016851,2]
[365525410,1749749432887,-300.0,0.00016852,2]
[365525411,1749749432902,-1957.856,0.00016853,2]
[365525412,1749749432918,-207.4,0.00016853,2]
[365525413,1749749432933,-1087.97526235,0.00016864,2]
[365525414,1749749433087,-912.02473765,0.00016864,2]
[365525415,1749749433103,-155.0,0.00016868,2]
[365525416,1749749433120,-945.0,0.00016868,2]
[365525417,1749749433135,-1250.0,0.000169,2]
[365525418,1749749433152,-332.15782837,0.000169,2]
[365525419,1749749433168,-173.20660688,0.000169,2]
[365525420,1749749433284,-4351.63307019,0.000169,2]
[365525421,1749749433300,-1250.0,0.000169,2]
[365525422,1749749433315,-2030.296672,0.00016908,2]
[365525423,1749749433330,-202.0,0.00016925,4]
[365525424,1749749433347,-254.28285908,0.00016963,2]
[365525425,1749749433363,-797.09,0.00016965,2]
[365525426,1749749433380,-500.0,0.00016973,2]
[365525427,1749749433396,-500.0,0.00016973,2]
[365525428,1749749433412,-500.0,0.00016973,2]
[365525429,1749749433428,-151.0,0.00016988,2]
[365525430,1749749433446,-1359.23790398,0.00016988,2]
[365525431,1749749433462,-151.0,0.00016988,2]
[365525432,1749749433478,-195.44589601,0.00016988,2]
[365525433,1749749433494,-500.0,0.00016988,2]
[365525434,1749749433509,-500.0,0.00016988,2]
[365525435,1749749433525,-204.68289905,0.00016989,2]
[365525436,1749749433540,-57813.18860979,0.0001699,2]
[365525437,1749749433559,-478.10187976,0.0001699,2]
[365525438,1749749433579,-6273.77149981,0.0001699,2]
[365525439,1749749433667,-1042.31877614,0.0001699,2]
[365525440,1749749433680,-7169.9085657,0.0001699,2]
[365525441,1749749433692,-1135.8514,0.0001699,2]
[365525442,1749749433724,-612.6519462,0.0001699,2]
[365525443,1749749433736,-1682.33057766,0.0001699,2]
[365525444,1749749434150,-3068.8008591,0.0001699,2]
[365525450,1749749438066,-1622.8052052,0.00016868,2]
[365525451,1749749438119,-499.11804958,0.00016868,2]
[365525452,1749749438205,-1213.80674522,0.00016868,2]
[365525453,1749749438215,-300.20172483,0.00016989,2]
[365525454,1749749438225,-9779.99152995,0.0001699,2]
[365525455,1749749438237,-2642.76516385,0.0001699,2]
[365525456,1749749438248,-2381.01369254,0.0001699,2]
[365525457,1749749438291,-10825.608,0.0001699,2]
[365525458,1749749438464,-4831.18865516,0.0001699,2]
[365525461,1749749440589,-7447.93802508,0.0001699,2]
[365525462,1749749440598,-854.106,0.00016997,2]
[365525463,1749749440608,-20017.5500471,0.00016998,2]
[365525464,1749749440617,-716.1120658,0.00016998,2]
[365525465,1749749440627,-529.1631955,0.00016998,2]
[365525466,1749749440636,-14002.9486921,0.00016998,2]
[365525467,1749749440645,-193.9432708,0.00016998,2]
[365525468,1749749440654,-641.8399038,0.00016998,2]
[365525469,1749749440663,-28893.2760978,0.00016998,2]
[365525470,1749749440673,-459.2592479,0.00016998,2]
[365525471,1749749440686,-207.3,0.00016999,2]
[365525472,1749749440695,-300.0,0.00016999,2]
[365525473,1749749440704,-3376.31909008,0.00017,3]
[365525474,1749749440713,-578985.4665111,0.00017,3]
[365525475,1749749440722,-321636.62278453,0.00017,2]
[365525477,1749749440855,-824.41740914,0.00017,2]
[365525478,1749749440866,-757.61175124,0.00017,2]
[365525479,1749749440879,-1381.39576,0.00017,2]
[365525485,1749749443375,-403.70762739,0.00016868,2]
[365525486,1749749443388,-3683.29237261,0.00016868,2]
[365525487,1749749443399,-72693.90343873,0.00017,2]
[365525489,1749749443410,-20150.28042804,0.00017,2]
[365525490,1749749443668,-649.18989135,0.00017,2]
[365525501,1749749446088,-566.9358469,0.000169,2]
[365525502,1749749446097,-2769.26025302,0.00017,2]
[365525503,1749749446113,-2509.89566902,0.00017,2]
[365525504,1749749446403,-771.61210564,0.00017,2]
[365525506,1749749515662,-282.1872524,0.00016164,2]
[365525507,1749749731853,587.34,0.00013699,2]
[365525509,1749749862887,200.0,0.00016063,7]
[365525511,1749750131552,202.0,0.00015549,2]
[365525512,1749750155359,1181.93,0.00014066,2]
[365525513,1749750192504,250.0,0.00015969,2]
[365525518,1749750217935,878.6,0.00015966,2]
[365525522,1749750283377,12722.74,0.00015959,2]
[365525529,1749750483877,666.0,0.00015948,2]
[365525530,1749750492073,202.0,0.00015203,2]
[365525531,1749750492320,202.0,0.00015872,2]
[365525532,1749750516581,1000.0,0.00015931,2]
[365525534,1749750575523,-155.63,0.00016066,2]
[365525535,1749750575545,-250.0,0.00016091,2]
[365525536,1749750575566,-300.0,0.00016091,2]
[365525537,1749750575588,-500.0,0.00016164,2]
[365525538,1749750575609,-500.0,0.00016164,2]
[365525539,1749750575630,-300.0,0.00016176,2]
[365525540,1749750575650,-1181.93,0.0001633,2]
[365525541,1749750575671,-202.0,0.0001654,3]
[365525542,1749750575692,-313.0,0.00016675,2]
[365525543,1749750575713,-1214.0,0.000167,5]
[365525544,1749750575734,-867.9924602,0.00016717,2]
[365525545,1749750575758,-263.39593771,0.00016771,2]
[365525546,1749750575778,-1000.0,0.00016799,2]
[365525547,1749750575800,-168.0,0.00016823,2]
[365525548,1749750575820,-313.0,0.00016841,2]
[365525549,1749750575843,-300.0,0.00016856,2]
[365525550,1749750575862,-1200.0,0.00016857,2]
[365525551,1749750575883,-300.0,0.00016857,2]
[365525552,1749750575904,-2000.0,0.00016864,2]
[365525553,1749750575924,-168.0,0.00016867,2]
[365525554,1749750575945,-168.0,0.0001688,2]
[365525555,1749750575966,-1957.856,0.00016888,2]
[365525556,1749750575987,-207.4,0.00016888,2]
[365525557,1749750576008,-205.50310249,0.00016897,2]
[365525558,1749750576029,-29999.99,0.00016898,2]
[365525559,1749750576049,-550.0,0.00016899,2]
[365525560,1749750576070,-5000.0,0.000169,2]
[365525561,1749750576091,-166.57135391,0.000169,2]
[365525562,1749750576336,-377.95723126,0.000169,2]
[365525563,1749750576358,-696.66868347,0.000169,2]
[365525564,1749750576380,-2030.296672,0.00016943,2]
[365525565,1749750576401,-1000.0,0.00016957,2]
[365525566,1749750576423,-854.106,0.00016962,2]
[365525567,1749750576444,-500.0,0.00016973,2]
[365525568,1749750576464,-531.46368335,0.00016973,2]
[365525569,1749750576485,-500.0,0.00016973,2]
[365525570,1749750576507,-500.0,0.00016973,2]
[365525571,1749750576528,-504.4967963,0.00016973,2]
[365525572,1749750576549,-500.0,0.00016973,2]
[365525573,1749750576570,-3171.30005737,0.00016988,2]
[365525574,1749750576590,-151.0,0.0001699,2]
[365525575,1749750576611,-151.0,0.0001699,2]
[365525576,1749750576632,-500.0,0.0001699,2]
[365525577,1749750576654,-500.0,0.0001699,2]
[365525578,1749750576675,-500.0,0.0001699,2]
[365525579,1749750576694,-500.0,0.0001699,2]
[365525580,1749750576715,-310.41814798,0.0001699,2]
[365525581,1749750576735,-151.0,0.0001699,2]
[365525582,1749750576762,-1500.0,0.0001699,2]
[365525583,1749750576783,-1500.0,0.0001699,2]
[365525584,1749750576804,-1500.0,0.0001699,2]
[365525585,1749750576827,-597.60974713,0.0001699,2]
[365525586,1749750576848,-784.07129256,0.0001699,2]
[365525587,1749750576870,-500.0,0.0001699,2]
[365525588,1749750576891,-500.0,0.0001699,2]
[365525589,1749750576914,-500.0,0.0001699,2]
[365525590,1749750576935,-500.0,0.0001699,2]
[365525591,1749750576956,-500.0,0.0001699,2]
[365525592,1749750576979,-500.0,0.0001699,2]
[365525593,1749750577000,-500.0,0.0001699,2]
[365525594,1749750577020,-500.0,0.0001699,2]
[365525595,1749750577040,-336.2986427,0.0001699,2]
[365525596,1749750577061,-211.0,0.00016991,2]
[365525597,1749750577081,-258.9761054,0.00016992,2]
[365525598,1749750577103,-189.35613531,0.00016992,2]
[365525599,1749750577124,-323.2390249,0.00016993,2]
[365525600,1749750577145,-67851.56039,0.00016993,2]
[365525601,1749750577165,-1965.3285395,0.00016993,2]
[365525602,1749750577187,-500.0,0.00016994,2]
[365525603,1749750577206,-220.94716228,0.00016994,2]
[365525604,1749750577226,-2105.41764886,0.00016998,2]
[365525605,1749750577246,-150.0,0.00016998,2]
[365525606,1749750577266,-295.1907986,0.00016998,2]
[365525607,1749750577286,-158.63247591,0.00016998,2]
[365525608,1749750577307,-500.0,0.00016998,2]
[365525609,1749750577327,-150.0,0.00016998,2]
[365525610,1749750577350,-1560.0,0.00016998,2]
[365525611,1749750577370,-203.6039194,0.00016998,2]
[365525612,1749750577391,-500.0,0.00016998,2]
[365525613,1749750577411,-172.75,0.00016999,2]
[365525614,1749750577432,-300.0,0.00016999,2]
[365525615,1749750577453,-3376.31909008,0.00017,3]
[365525616,1749750577476,-547107.72290133,0.00017,3]
[365525626,1749750632438,-500.0,0.00016164,2]
[365525627,1749750632449,-162.98,0.00016192,2]
[365525628,1749750632458,-250.0,0.00016582,2]
[365525629,1749750632467,-251.97148752,0.000169,2]
[365525630,1749750632477,-500.0,0.00016973,2]
[365525631,1749750632487,-181.28327378,0.00016999,2]
[365525632,1749750632496,-1200.0,0.00016999,2]
[365525633,1749750632505,-300.0,0.00016999,2]
[365525634,1749750632515,-666.0,0.00016999,2]
[365525635,1749750632524,-1688.15954504,0.00017,3]
[365525636,1749750632534,-3539.27154679,0.00017,3]
[365525637,1749750632546,-4184.511012,0.00017,3]
[365525638,1749750632558,-6833.04688218,0.00017,3]
[365525639,1749750632570,-1366.36535,0.00017,3]
[365525640,1749750632582,-744.535,0.00017,3]
[365525641,1749750632594,-289715.44233698,0.00017,3]
[365525643,1749750632603,-71086.48335174,0.00017,2]
[365525646,1749750632627,-350.07904411,0.00017,2]
[365525650,1749750632649,-522.58802425,0.00017,2]
[365525755,1749750639383,-896.43266265,0.000169,2]
[365525757,1749750639392,-36.68324614,0.00016993,2]
[365525759,1749750639404,-269.71891176,0.00016993,2]
[365525761,1749750639414,-12.06420628,0.00017,2]
[365525763,1749750639425,-3241.66843477,0.00017,2]
[365525886,1749750640739,-82460.58744,0.00017,2]
[365525888,1749750640751,-970813.90690651,0.00017,2]
[365525891,1749750640770,-2361.32149217,0.00017,2]
[365525893,1749750640782,-57598.4676591,0.00017,2]
[365525895,1749750640793,-69002.98558865,0.00017,2]
[365525897,1749750640805,-1082.1964655,0.00017,2]
[365525899,1749750640816,-38922.28380531,0.00017,2]
[365525953,1749750643649,-914.04186513,0.00017,2]
[365525962,1749750646240,-2125.4,0.00017,2]
[365525963,1749750646558,-109858.4757908,0.00017,2]
[365525968,1749750653440,-77101.96197121,0.00016992,2]
[365525969,1749750653462,-300.0,0.00016999,2]
[365525970,1749750653486,-15598.03802879,0.00017,2]
[365525971,1749750741860,-200.0,0.00016856,2]
[365525972,1749750741882,-729.8248,0.000169,2]
[365525973,1749750741905,-250.0,0.000169,2]
[365525974,1749750741925,-13579.48770285,0.000169,2]
[365525975,1749750741948,-200.0,0.00016933,2]
[365525976,1749750741969,-501.04347227,0.00016973,2]
[365525977,1749750741990,-501.64336532,0.00016973,2]
[365525978,1749750742013,-500.0,0.00016973,2]
[365525979,1749750742035,-500.0,0.00016973,2]
[365525980,1749750742057,-595.23587798,0.00016973,2]
[365525981,1749750742077,-500.0,0.00016973,2]
[365525982,1749750742098,-500.0,0.00016973,2]
[365525983,1749750742119,-500.0,0.00016973,2]
[365525984,1749750742138,-504.45302218,0.00016973,2]
[365525985,1749750742160,-151.0,0.0001699,2]
[365525986,1749750742190,-1957.856,0.0001699,2]
[365525987,1749750742212,-81363.3884362,0.00016993,2]
[365525988,1749750742234,-208.10606919,0.00016999,2]
[365525989,1749750742262,-334.37454839,0.00016999,2]
[365525990,1749750742297,-500.0,0.00016999,2]
[365525991,1749750742320,-500.0,0.00016999,2]
[365525992,1749750742340,-405.59124596,0.00016999,2]
[365525993,1749750742361,-500.0,0.00016999,2]
[365525994,1749750742383,-321.90591507,0.00016999,2]
[365525995,1749750742404,-500.0,0.00016999,2]
[365525996,1749750742425,-200.1,0.00016999,2]
[365525997,1749750742447,-56244.81498127,0.00017,2]
[365525998,1749750742469,-152251.17456332,0.00017,2]
[365525999,1749750753253,200.0,0.000161,5]
[365526000,1749750761727,379.0,0.00015203,2]
[365526001,1749750785788,-200.0,0.000161,5]
[365526002,1749750785811,-500.0,0.00016164,2]
[365526003,1749750785831,-900.0,0.000162,5]
[365526004,1749750785854,-1400.0,0.000163,5]
[365526005,1749750785874,-1900.0,0.000164,5]
[365526006,1749750785897,-2400.0,0.000165,6]
[365526007,1749750785918,-400.0,0.000166,6]
[365526008,1749750785938,-400.0,0.000167,6]
[365526009,1749750785958,-400.0,0.000168,6]
[365526010,1749750785979,-300.0,0.00016899,2]
[365526011,1749750785999,-400.0,0.000169,6]
[365526012,1749750786027,-1916.64783879,0.000169,2]
[365526013,1749750786046,-167.98099168,0.000169,2]
[365526014,1749750786067,-3533.4369,0.000169,2]